[Event "Early-Titled-Tuesday-Blitz-March-19-2024"]
[Site "Chess.com"]
[Date "2024.03.19"]
[Round "8"]
[White "secrethawk1"]
[Black "igorknyazev"]
[Result "1-0"]
[WhiteElo "2430"]
[BlackElo "2237"]
[TimeControl "180+1"]
[EndTime "9:28:25 PDT"]
[Termination "secrethawk1 won by resignation"]

1. d4 {[%clk 0:02:45.6]} 1... Nf6 {[%clk 0:02:59.5]} 2. Bf4 {[%clk 0:02:44.5]}
2... g6 {[%clk 0:02:55.9]} 3. e3 {[%clk 0:02:44.1]} 3... Bg7 {[%clk 0:02:56.1]}
4. Nf3 {[%clk 0:02:44.3]} 4... O-O {[%clk 0:02:56.7]} 5. h3 {[%clk 0:02:44.9]}
5... d6 {[%clk 0:02:56.8]} 6. Be2 {[%clk 0:02:44.6]} 6... Nbd7 {[%clk
0:02:56.9]} 7. O-O {[%clk 0:02:44.4]} 7... c5 {[%clk 0:02:54.8]} 8. c3 {[%clk
0:02:44.7]} 8... Qb6 {[%clk 0:02:52.5]} 9. Qb3 {[%clk 0:02:44.3]} 9... Qxb3
{[%clk 0:02:51.4]} 10. axb3 {[%clk 0:02:45.2]} 10... a6 {[%clk 0:02:51]} 11.
Nbd2 {[%clk 0:02:45]} 11... Nd5 {[%clk 0:02:47.9]} 12. Bh2 {[%clk 0:02:44.1]}
12... cxd4 {[%clk 0:02:45.4]} 13. exd4 {[%clk 0:02:43.2]} 13... Bh6 {[%clk
0:02:41.7]} 14. Rfe1 {[%clk 0:02:41.9]} 14... Re8 {[%clk 0:02:34.9]} 15. Nc4
{[%clk 0:02:39]} 15... b5 {[%clk 0:02:28.2]} 16. Na5 {[%clk 0:02:37.4]} 16... e5
{[%clk 0:02:09.9]} 17. Bd3 {[%clk 0:02:26.6]} 17... Nf4 {[%clk 0:02:01.4]} 18.
Be4 {[%clk 0:02:19.8]} 18... d5 {[%clk 0:01:48.2]} 19. Bxf4 {[%clk 0:02:18.3]}
19... dxe4 {[%clk 0:01:48.4]} 20. Bxh6 {[%clk 0:02:17.2]} 20... exf3 {[%clk
0:01:48.8]} 21. gxf3 {[%clk 0:02:16.6]} 21... f6 {[%clk 0:01:37.6]} 22. Bd2
{[%clk 0:02:03.8]} 22... Kf7 {[%clk 0:01:34.7]} 23. f4 {[%clk 0:02:01.7]} 23...
exd4 {[%clk 0:01:32.1]} 24. Rxe8 {[%clk 0:02:00.7]} 24... Kxe8 {[%clk
0:01:31.6]} 25. cxd4 {[%clk 0:02:01.6]} 25... Nb6 {[%clk 0:01:30.4]} 26. Re1+
{[%clk 0:01:59.3]} 26... Kf7 {[%clk 0:01:29.4]} 27. Bb4 {[%clk 0:01:58.5]} 27...
Nd5 {[%clk 0:01:29.4]} 28. Bc5 {[%clk 0:01:56.3]} 28... Bxh3 {[%clk 0:01:29.3]}
29. Nb7 {[%clk 0:01:51]} 29... Nxf4 {[%clk 0:01:19.8]} 30. Re7+ {[%clk
0:01:38.9]} 30... Kg8 {[%clk 0:01:20.1]} 31. Nd6 {[%clk 0:01:33.1]} 31... Ne6
{[%clk 0:01:18.1]} 32. b4 {[%clk 0:01:23.5]} 32... h5 {[%clk 0:00:46.9]} 33. Kh2
{[%clk 0:01:10.2]} 33... Bg4 {[%clk 0:00:38.9]} 34. Ne4 {[%clk 0:01:07.8]} 34...
Nxc5 {[%clk 0:00:30.8]} 35. bxc5 {[%clk 0:01:05.1]} 35... Kf8 {[%clk 0:00:22.9]}
36. Rh7 {[%clk 0:01:03.3]} 36... Be6 {[%clk 0:00:20.5]} 37. Rh8+ {[%clk
0:00:57.3]} 37... Bg8 {[%clk 0:00:20.5]} 38. Nxf6 {[%clk 0:00:56.8]} 38... Kg7
{[%clk 0:00:20.9]} 39. Rxg8+ {[%clk 0:00:56.5]} 39... Rxg8 {[%clk 0:00:20.4]}
40. Nxg8 {[%clk 0:00:57.4]} 40... Kxg8 {[%clk 0:00:19.8]} 41. c6 {[%clk
0:00:57.4]} 1-0

[Event "Early-Titled-Tuesday-Blitz-March-19-2024"]
[Site "Chess.com"]
[Date "2024.03.19"]
[Round "8"]
[White "rhwr"]
[Black "HandKnit"]
[Result "0-1"]
[WhiteElo "2330"]
[BlackElo "2503"]
[TimeControl "180+1"]
[EndTime "9:28:30 PDT"]
[Termination "HandKnit won by resignation"]

1. c4 {[%clk 0:02:59]} 1... Nf6 {[%clk 0:02:59.1]} 2. Nc3 {[%clk 0:02:59.5]}
2... e6 {[%clk 0:02:59]} 3. g3 {[%clk 0:03:00.1]} 3... d5 {[%clk 0:02:58.3]} 4.
d4 {[%clk 0:02:59.9]} 4... Bb4 {[%clk 0:02:55.3]} 5. cxd5 {[%clk 0:02:52.7]}
5... exd5 {[%clk 0:02:51.4]} 6. Bg2 {[%clk 0:02:48.1]} 6... O-O {[%clk
0:02:50.5]} 7. Nf3 {[%clk 0:02:45.7]} 7... Re8 {[%clk 0:02:50.3]} 8. O-O {[%clk
0:02:45.5]} 8... c6 {[%clk 0:02:50.1]} 9. a3 {[%clk 0:02:42.7]} 9... Bd6 {[%clk
0:02:49.3]} 10. h4 {[%clk 0:02:40.4]} 10... Bg4 {[%clk 0:02:47.5]} 11. b4 {[%clk
0:02:33.1]} 11... Nbd7 {[%clk 0:02:45.1]} 12. b5 {[%clk 0:02:24.9]} 12... Nb6
{[%clk 0:02:34.8]} 13. bxc6 {[%clk 0:02:22.6]} 13... bxc6 {[%clk 0:02:35.7]} 14.
Na4 {[%clk 0:02:14.1]} 14... Ne4 {[%clk 0:02:31.1]} 15. Bb2 {[%clk 0:01:58.6]}
15... Rb8 {[%clk 0:02:18.3]} 16. Ne5 {[%clk 0:01:57.3]} 16... Bxe5 {[%clk
0:02:11.6]} 17. dxe5 {[%clk 0:01:49.7]} 17... Nxa4 {[%clk 0:02:11.6]} 18. Qxa4
{[%clk 0:01:49.7]} 18... Rxb2 {[%clk 0:02:11.3]} 19. f3 {[%clk 0:01:49.9]} 19...
Nxg3 {[%clk 0:02:02.9]} 20. Qxg4 {[%clk 0:01:43.5]} 20... Nxf1 {[%clk
0:02:01.8]} 21. Bxf1 {[%clk 0:01:44.1]} 21... Rxe5 {[%clk 0:01:42.5]} 22. Rc1
{[%clk 0:01:41.6]} 22... Re6 {[%clk 0:01:39.7]} 23. Kh2 {[%clk 0:01:35.5]} 23...
Rh6 {[%clk 0:01:30.5]} 24. Kh3 {[%clk 0:01:26.5]} 24... f5 {[%clk 0:01:17.3]}
25. Qd4 {[%clk 0:01:21.3]} 25... Rd2 {[%clk 0:00:46.3]} 26. Qf4 {[%clk
0:01:11.6]} 26... Rb2 {[%clk 0:00:27.7]} 27. Qd4 {[%clk 0:01:10]} 27... Rb7
{[%clk 0:00:24.2]} 28. e3 {[%clk 0:00:59.6]} 28... g5 {[%clk 0:00:22]} 29. Ba6
{[%clk 0:00:50.2]} 29... Rxh4+ {[%clk 0:00:19.7]} 30. Kg3 {[%clk 0:00:50.8]}
30... Rxd4 {[%clk 0:00:18.4]} 31. exd4 {[%clk 0:00:49.8]} 31... f4+ {[%clk
0:00:18.1]} 32. Kf2 {[%clk 0:00:48.7]} 32... Rb2+ {[%clk 0:00:18.3]} 33. Be2
{[%clk 0:00:47.8]} 33... Qe7 {[%clk 0:00:17.5]} 34. Re1 {[%clk 0:00:48.7]} 34...
Qe3+ {[%clk 0:00:17]} 35. Kf1 {[%clk 0:00:49.6]} 35... g4 {[%clk 0:00:14.3]} 0-1

[Event "Early-Titled-Tuesday-Blitz-March-19-2024"]
[Site "Chess.com"]
[Date "2024.03.19"]
[Round "8"]
[White "gpsji27"]
[Black "campochess"]
[Result "1-0"]
[WhiteElo "2355"]
[BlackElo "2184"]
[TimeControl "180+1"]
[EndTime "9:28:33 PDT"]
[Termination "gpsji27 won by resignation"]

1. d4 {[%clk 0:03:00.9]} 1... Nf6 {[%clk 0:02:57.9]} 2. Nf3 {[%clk 0:03:00.5]}
2... g6 {[%clk 0:02:57.6]} 3. Nc3 {[%clk 0:03:00]} 3... d5 {[%clk 0:02:56.7]} 4.
Bf4 {[%clk 0:02:55]} 4... c6 {[%clk 0:02:55.5]} 5. e3 {[%clk 0:02:54.2]} 5...
Bg7 {[%clk 0:02:55.4]} 6. Be2 {[%clk 0:02:49.7]} 6... Nbd7 {[%clk 0:02:52.2]} 7.
Ne5 {[%clk 0:02:49.2]} 7... Nf8 {[%clk 0:02:48.7]} 8. Qd2 {[%clk 0:02:44.3]}
8... Ne6 {[%clk 0:02:47.9]} 9. Bg3 {[%clk 0:02:32.8]} 9... Ng5 {[%clk
0:02:45.3]} 10. f3 {[%clk 0:02:29]} 10... h5 {[%clk 0:02:44]} 11. h4 {[%clk
0:02:24.9]} 11... Ngh7 {[%clk 0:02:34.5]} 12. Qd3 {[%clk 0:02:23.1]} 12... Nf8
{[%clk 0:02:31.7]} 13. e4 {[%clk 0:02:05.2]} 13... dxe4 {[%clk 0:02:27.2]} 14.
fxe4 {[%clk 0:02:04.1]} 14... Ng4 {[%clk 0:02:27]} 15. Nxg4 {[%clk 0:02:02.8]}
15... Bxg4 {[%clk 0:02:25.7]} 16. Bxg4 {[%clk 0:02:02]} 16... hxg4 {[%clk
0:02:25.6]} 17. O-O-O {[%clk 0:02:01.1]} 17... Qa5 {[%clk 0:02:19.9]} 18. Kb1
{[%clk 0:01:57.3]} 18... Ne6 {[%clk 0:02:16.5]} 19. e5 {[%clk 0:01:49.7]} 19...
O-O-O {[%clk 0:02:13.5]} 20. Qc4 {[%clk 0:01:49]} 20... Rd7 {[%clk 0:01:54.3]}
21. d5 {[%clk 0:01:45.5]} 21... Qc5 {[%clk 0:01:42.8]} 22. Qb3 {[%clk
0:01:18.3]} 22... Nd4 {[%clk 0:01:34.6]} 23. Qa4 {[%clk 0:01:10.5]} 23... Nb5
{[%clk 0:01:29.4]} 24. Nxb5 {[%clk 0:01:01.7]} 24... cxb5 {[%clk 0:01:25.8]} 25.
Qxg4 {[%clk 0:01:01]} 25... Kd8 {[%clk 0:01:11.7]} 26. e6 {[%clk 0:00:48.5]}
26... Rxd5 {[%clk 0:00:59.2]} 27. Rxd5+ {[%clk 0:00:44]} 27... Qxd5 {[%clk
0:00:57.8]} 28. Rd1 {[%clk 0:00:44.2]} 28... fxe6 {[%clk 0:00:55.3]} 29. Rxd5+
{[%clk 0:00:33.8]} 29... exd5 {[%clk 0:00:55.4]} 30. Qxg6 {[%clk 0:00:33.9]}
30... Bf6 {[%clk 0:00:55.4]} 31. Qf5 {[%clk 0:00:33.6]} 31... d4 {[%clk
0:00:54]} 32. Qd5+ {[%clk 0:00:32.5]} 32... Kc8 {[%clk 0:00:51.3]} 33. Qc5+
{[%clk 0:00:28.1]} 33... Kd8 {[%clk 0:00:51]} 34. Qxb5 {[%clk 0:00:24.5]} 34...
b6 {[%clk 0:00:47.5]} 35. Qc6 {[%clk 0:00:24]} 35... Rh6 {[%clk 0:00:39.9]} 36.
Bc7+ {[%clk 0:00:20.6]} 36... Kc8 {[%clk 0:00:38.7]} 37. Bxb6+ {[%clk
0:00:21.1]} 1-0

[Event "Early-Titled-Tuesday-Blitz-March-19-2024"]
[Site "Chess.com"]
[Date "2024.03.19"]
[Round "8"]
[White "IraZyne"]
[Black "MikeSailer"]
[Result "1-0"]
[WhiteElo "2333"]
[BlackElo "2128"]
[TimeControl "180+1"]
[EndTime "9:28:33 PDT"]
[Termination "IraZyne won on time"]

1. e4 {[%clk 0:03:00.9]} 1... d5 {[%clk 0:02:56.6]} 2. exd5 {[%clk 0:02:59.8]}
2... Qxd5 {[%clk 0:02:56.9]} 3. Qf3 {[%clk 0:03:00.4]} 3... Qxf3 {[%clk
0:02:55.8]} 4. Nxf3 {[%clk 0:03:00.5]} 4... Nc6 {[%clk 0:02:48.9]} 5. Bb5 {[%clk
0:02:59.4]} 5... Bd7 {[%clk 0:02:42.6]} 6. O-O {[%clk 0:02:57.9]} 6... O-O-O
{[%clk 0:02:35.9]} 7. d4 {[%clk 0:02:52.2]} 7... a6 {[%clk 0:02:19.7]} 8. Bc4
{[%clk 0:02:51.6]} 8... e6 {[%clk 0:02:19.1]} 9. c3 {[%clk 0:02:51.6]} 9... h6
{[%clk 0:02:18.4]} 10. Nbd2 {[%clk 0:02:49.2]} 10... Nf6 {[%clk 0:02:16.7]} 11.
Re1 {[%clk 0:02:46.8]} 11... Bd6 {[%clk 0:02:15.5]} 12. Bb3 {[%clk 0:02:44.8]}
12... g5 {[%clk 0:02:08.4]} 13. Nc4 {[%clk 0:02:43.8]} 13... Bf4 {[%clk
0:01:41.3]} 14. g3 {[%clk 0:02:39.5]} 14... Bxc1 {[%clk 0:01:39.3]} 15. Raxc1
{[%clk 0:02:39.5]} 15... Rdg8 {[%clk 0:01:25.9]} 16. Nce5 {[%clk 0:02:38]} 16...
Nxe5 {[%clk 0:01:24.5]} 17. Nxe5 {[%clk 0:02:37.9]} 17... Be8 {[%clk 0:01:25]}
18. c4 {[%clk 0:02:34.2]} 18... Nd7 {[%clk 0:01:11.5]} 19. d5 {[%clk 0:02:29.6]}
19... Nxe5 {[%clk 0:01:09.6]} 20. Rxe5 {[%clk 0:02:28.1]} 20... Bd7 {[%clk
0:01:03.4]} 21. c5 {[%clk 0:02:24.6]} 21... Re8 {[%clk 0:00:58.2]} 22. dxe6
{[%clk 0:02:23.7]} 22... Bxe6 {[%clk 0:00:55.7]} 23. Bxe6+ {[%clk 0:02:20.9]}
23... Rxe6 {[%clk 0:00:55.4]} 24. Rxe6 {[%clk 0:02:21.2]} 24... fxe6 {[%clk
0:00:55.5]} 25. c6 {[%clk 0:02:16.1]} 25... b6 {[%clk 0:00:48.7]} 26. Re1 {[%clk
0:02:15.7]} 26... Re8 {[%clk 0:00:43.8]} 27. Kg2 {[%clk 0:02:15.6]} 27... e5
{[%clk 0:00:35]} 28. f4 {[%clk 0:02:14.3]} 28... gxf4 {[%clk 0:00:31.9]} 29.
gxf4 {[%clk 0:02:14.3]} 29... Rg8+ {[%clk 0:00:27.1]} 30. Kf3 {[%clk 0:02:14.2]}
30... exf4 {[%clk 0:00:26.9]} 31. Kxf4 {[%clk 0:02:14.4]} 31... Kd8 {[%clk
0:00:20.6]} 32. Rd1+ {[%clk 0:02:03.3]} 32... Kc8 {[%clk 0:00:21.1]} 33. Rd7
{[%clk 0:02:00.8]} 33... Rg6 {[%clk 0:00:16.9]} 34. h4 {[%clk 0:01:57.2]} 34...
Rxc6 {[%clk 0:00:16.6]} 35. Rh7 {[%clk 0:01:55.2]} 35... Rc2 {[%clk 0:00:10]}
36. Rxh6 {[%clk 0:01:53.9]} 36... Rxb2 {[%clk 0:00:10.4]} 37. a3 {[%clk
0:01:52.9]} 37... Rb3 {[%clk 0:00:10.2]} 38. Rg6 {[%clk 0:01:47.1]} 38... Rxa3
{[%clk 0:00:10]} 39. h5 {[%clk 0:01:47.3]} 39... Rh3 {[%clk 0:00:09]} 40. Kg4
{[%clk 0:01:46.5]} 40... Rh1 {[%clk 0:00:08.9]} 41. h6 {[%clk 0:01:46.6]} 41...
a5 {[%clk 0:00:08.6]} 42. Kg5 {[%clk 0:01:46.1]} 42... a4 {[%clk 0:00:07.1]} 43.
Rc6 {[%clk 0:01:45.2]} 43... Kb7 {[%clk 0:00:04.2]} 44. Rc2 {[%clk 0:01:43]}
44... b5 {[%clk 0:00:04]} 45. h7 {[%clk 0:01:43.1]} 45... Kb6 {[%clk 0:00:03.1]}
46. Kg6 {[%clk 0:01:41.2]} 46... c5 {[%clk 0:00:02.5]} 47. Rc1 {[%clk
0:01:38.8]} 47... Rxh7 {[%clk 0:00:02.8]} 48. Kxh7 {[%clk 0:01:36.9]} 48... b4
{[%clk 0:00:00.8]} 49. Kg6 {[%clk 0:01:37.3]} 1-0

[Event "Early-Titled-Tuesday-Blitz-March-19-2024"]
[Site "Chess.com"]
[Date "2024.03.19"]
[Round "8"]
[White "PLAYER_2006_M"]
[Black "SuperPower2011"]
[Result "1-0"]
[WhiteElo "2944"]
[BlackElo "2774"]
[TimeControl "180+1"]
[EndTime "9:28:35 PDT"]
[Termination "PLAYER_2006_M won on time"]

1. e4 {[%clk 0:03:00.9]} 1... c5 {[%clk 0:02:59.7]} 2. Nf3 {[%clk 0:03:01]} 2...
e6 {[%clk 0:03:00.3]} 3. c3 {[%clk 0:03:00]} 3... Nf6 {[%clk 0:02:59.9]} 4. e5
{[%clk 0:03:00.4]} 4... Nd5 {[%clk 0:03:00.7]} 5. Bc4 {[%clk 0:02:58.6]} 5... b6
{[%clk 0:02:56]} 6. d4 {[%clk 0:02:57.9]} 6... cxd4 {[%clk 0:02:55.6]} 7. Bxd5
{[%clk 0:02:53.8]} 7... exd5 {[%clk 0:02:55.7]} 8. Qxd4 {[%clk 0:02:54.5]} 8...
Nc6 {[%clk 0:02:32.3]} 9. Qxd5 {[%clk 0:02:52.2]} 9... Ba6 {[%clk 0:02:32.5]}
10. Bg5 {[%clk 0:02:48.3]} 10... Be7 {[%clk 0:02:27.1]} 11. Bxe7 {[%clk
0:02:47]} 11... Qxe7 {[%clk 0:02:27.7]} 12. Nbd2 {[%clk 0:02:47.8]} 12... O-O
{[%clk 0:02:03.1]} 13. O-O-O {[%clk 0:02:46.8]} 13... Rac8 {[%clk 0:01:59.4]}
14. Kb1 {[%clk 0:02:40.2]} 14... Rfe8 {[%clk 0:01:58.8]} 15. Rhe1 {[%clk
0:02:39.7]} 15... Nb8 {[%clk 0:01:11]} 16. h4 {[%clk 0:02:34.3]} 16... Rc5
{[%clk 0:01:09.8]} 17. Qd6 {[%clk 0:02:28.5]} 17... Qxd6 {[%clk 0:01:02.6]} 18.
exd6 {[%clk 0:02:29.4]} 18... Bd3+ {[%clk 0:01:02.8]} 19. Kc1 {[%clk 0:02:29]}
19... Re6 {[%clk 0:01:03.3]} 20. Nd4 {[%clk 0:02:20.8]} 20... Rxe1 {[%clk
0:00:57]} 21. Rxe1 {[%clk 0:02:20.9]} 21... Kf8 {[%clk 0:00:56.1]} 22. Re3
{[%clk 0:02:19.5]} 22... Ba6 {[%clk 0:00:55.4]} 23. g4 {[%clk 0:02:02.5]} 23...
Rd5 {[%clk 0:00:46.8]} 24. Ne4 {[%clk 0:02:01.9]} 24... Bb7 {[%clk 0:00:45.1]}
25. f4 {[%clk 0:01:53.6]} 25... Na6 {[%clk 0:00:37.7]} 26. Nf5 {[%clk
0:01:34.9]} 26... Nc5 {[%clk 0:00:35.4]} 27. Nxc5 {[%clk 0:01:31.1]} 27... Rxc5
{[%clk 0:00:33.1]} 28. h5 {[%clk 0:01:17.4]} 28... h6 {[%clk 0:00:09.3]} 29. Re7
{[%clk 0:01:12.2]} 29... Bc6 {[%clk 0:00:09.8]} 30. Nd4 {[%clk 0:01:12.5]} 30...
Rd5 {[%clk 0:00:04.4]} 31. Nxc6 {[%clk 0:01:08.2]} 31... dxc6 {[%clk 0:00:05.3]}
32. Rd7 {[%clk 0:01:08.4]} 32... Ke8 {[%clk 0:00:05.3]} 33. Re7+ {[%clk
0:01:09.1]} 33... Kf8 {[%clk 0:00:05.6]} 34. Rxa7 {[%clk 0:01:06.6]} 34... Rxd6
{[%clk 0:00:06.3]} 35. Kc2 {[%clk 0:01:07.3]} 35... Rf6 {[%clk 0:00:01.9]} 36.
Ra4 {[%clk 0:01:05.9]} 36... Ke7 {[%clk 0:00:01.6]} 37. Re4+ {[%clk 0:01:04.5]}
37... Kd7 {[%clk 0:00:02.2]} 38. a4 {[%clk 0:01:05.1]} 38... Rd6 {[%clk
0:00:01.2]} 39. b4 {[%clk 0:01:05.7]} 39... Kc7 {[%clk 0:00:01.7]} 40. Re7+
{[%clk 0:01:05.4]} 40... Rd7 {[%clk 0:00:01.5]} 41. Rxd7+ {[%clk 0:01:05.7]}
41... Kxd7 {[%clk 0:00:02.4]} 42. Kd3 {[%clk 0:01:05.9]} 42... g6 {[%clk
0:00:02.3]} 43. g5 {[%clk 0:01:04.9]} 1-0

[Event "Early-Titled-Tuesday-Blitz-March-19-2024"]
[Site "Chess.com"]
[Date "2024.03.19"]
[Round "8"]
[White "DarZay"]
[Black "NovoselovRoman"]
[Result "0-1"]
[WhiteElo "2352"]
[BlackElo "2549"]
[TimeControl "180+1"]
[EndTime "9:28:35 PDT"]
[Termination "NovoselovRoman won by checkmate"]

1. e4 {[%clk 0:02:54.9]} 1... d5 {[%clk 0:02:46.8]} 2. exd5 {[%clk 0:02:54.6]}
2... Qxd5 {[%clk 0:02:47.7]} 3. Nc3 {[%clk 0:02:54.8]} 3... Qd6 {[%clk
0:02:47.4]} 4. d4 {[%clk 0:02:54.2]} 4... Nf6 {[%clk 0:02:47.5]} 5. Nf3 {[%clk
0:02:53.8]} 5... c6 {[%clk 0:02:47.2]} 6. Ne5 {[%clk 0:02:51]} 6... Nbd7 {[%clk
0:02:47.1]} 7. f4 {[%clk 0:02:51.2]} 7... Nb6 {[%clk 0:02:46.9]} 8. Be2 {[%clk
0:02:48.1]} 8... Bf5 {[%clk 0:02:46.6]} 9. O-O {[%clk 0:02:47.6]} 9... e6 {[%clk
0:02:46.2]} 10. Kh1 {[%clk 0:02:47.1]} 10... h5 {[%clk 0:02:46.2]} 11. Be3
{[%clk 0:02:45.9]} 11... Rd8 {[%clk 0:02:40.7]} 12. Qe1 {[%clk 0:02:36.9]} 12...
Bxc2 {[%clk 0:02:24.5]} 13. Qg3 {[%clk 0:02:26.7]} 13... Bf5 {[%clk 0:02:18.5]}
14. Nd3 {[%clk 0:02:21.5]} 14... h4 {[%clk 0:02:14.5]} 15. Qe1 {[%clk
0:02:12.3]} 15... Nbd5 {[%clk 0:02:10.5]} 16. Nxd5 {[%clk 0:02:09.6]} 16... Nxd5
{[%clk 0:02:11.4]} 17. Bd2 {[%clk 0:02:09]} 17... Nf6 {[%clk 0:02:02.4]} 18. Bc3
{[%clk 0:02:07.9]} 18... Ne4 {[%clk 0:02:01.9]} 19. Bf3 {[%clk 0:02:03.4]} 19...
Ng3+ {[%clk 0:01:50.6]} 20. Kg1 {[%clk 0:01:51.2]} 20... Bxd3 {[%clk 0:01:39.3]}
21. hxg3 {[%clk 0:01:50.6]} 21... Bxf1 {[%clk 0:01:38.9]} 22. Qxf1 {[%clk
0:01:50.5]} 22... hxg3 {[%clk 0:01:39.5]} 23. Be4 {[%clk 0:01:48.1]} 23... Qe7
{[%clk 0:01:36.8]} 24. Qc4 {[%clk 0:01:29.2]} 24... Qh4 {[%clk 0:01:31.8]} 25.
Bxc6+ {[%clk 0:01:22.7]} 25... bxc6 {[%clk 0:01:24.7]} 26. Qxc6+ {[%clk
0:01:22.9]} 26... Rd7 {[%clk 0:01:18.5]} 27. Qc8+ {[%clk 0:01:22.4]} 27... Qd8
{[%clk 0:01:19]} 28. Qc6 {[%clk 0:01:21.9]} 28... Be7 {[%clk 0:01:10.1]} 29. Re1
{[%clk 0:01:16.4]} 29... O-O {[%clk 0:01:09.9]} 30. Re3 {[%clk 0:01:16.6]} 30...
Bf6 {[%clk 0:00:58.4]} 31. Rxg3 {[%clk 0:01:15.2]} 31... Bxd4+ {[%clk 0:00:59]}
32. Kh2 {[%clk 0:01:15]} 32... Qh4+ {[%clk 0:00:52.3]} 33. Rh3 {[%clk
0:01:15.3]} 33... Qxf4+ {[%clk 0:00:52.9]} 34. Rg3 {[%clk 0:01:13.5]} 34... Rd5
{[%clk 0:00:49.7]} 35. Bxd4 {[%clk 0:01:09.5]} 35... Rh5+ {[%clk 0:00:49.6]} 36.
Kg1 {[%clk 0:01:08.8]} 36... Qxd4+ {[%clk 0:00:49.7]} 37. Kf1 {[%clk 0:01:09.2]}
37... Rh1+ {[%clk 0:00:37.2]} 38. Ke2 {[%clk 0:01:08.1]} 38... Qd1+ {[%clk
0:00:36.9]} 39. Kf2 {[%clk 0:01:07.5]} 39... Rf1+ {[%clk 0:00:33.6]} 40. Ke3
{[%clk 0:01:07.8]} 40... Re1+ {[%clk 0:00:31.3]} 41. Kf4 {[%clk 0:01:07.8]}
41... Qd4+ {[%clk 0:00:29.4]} 42. Kg5 {[%clk 0:01:07.1]} 42... Qf6+ {[%clk
0:00:26]} 43. Kg4 {[%clk 0:01:06.7]} 43... Qf5+ {[%clk 0:00:26.1]} 44. Kh4
{[%clk 0:01:07.2]} 44... Rh1+ {[%clk 0:00:22.9]} 45. Rh3 {[%clk 0:01:07.4]}
45... Qf4+ {[%clk 0:00:23.5]} 46. g4 {[%clk 0:01:07.5]} 46... Qf2+ {[%clk
0:00:18.2]} 47. Kg5 {[%clk 0:01:02.3]} 47... Qf6+ {[%clk 0:00:17.6]} 48. Kh5
{[%clk 0:01:01.2]} 48... Qh6# {[%clk 0:00:18.2]} 0-1

[Event "Early-Titled-Tuesday-Blitz-March-19-2024"]
[Site "Chess.com"]
[Date "2024.03.19"]
[Round "8"]
[White "MalyDominator"]
[Black "alvarorodriguezavila"]
[Result "1-0"]
[WhiteElo "2543"]
[BlackElo "2343"]
[TimeControl "180+1"]
[EndTime "9:28:37 PDT"]
[Termination "MalyDominator won on time"]

1. e4 {[%clk 0:03:00.9]} 1... c5 {[%clk 0:02:59.9]} 2. Nf3 {[%clk 0:03:00]} 2...
g6 {[%clk 0:03:00.1]} 3. c3 {[%clk 0:02:59.3]} 3... Bg7 {[%clk 0:02:59.6]} 4. d4
{[%clk 0:02:59.6]} 4... cxd4 {[%clk 0:03:00.5]} 5. cxd4 {[%clk 0:03:00.1]} 5...
d5 {[%clk 0:03:01.4]} 6. e5 {[%clk 0:03:00.1]} 6... Bg4 {[%clk 0:03:02]} 7. Be2
{[%clk 0:03:00.6]} 7... Nh6 {[%clk 0:02:58.7]} 8. O-O {[%clk 0:03:00.5]} 8...
O-O {[%clk 0:02:56.9]} 9. h3 {[%clk 0:03:00]} 9... Bxf3 {[%clk 0:02:57.5]} 10.
Bxf3 {[%clk 0:02:59.7]} 10... Nf5 {[%clk 0:02:57.7]} 11. Nc3 {[%clk 0:02:57]}
11... e6 {[%clk 0:02:57.2]} 12. g4 {[%clk 0:02:51.8]} 12... Nh4 {[%clk
0:02:56.8]} 13. Bh1 {[%clk 0:02:52.1]} 13... Nc6 {[%clk 0:02:54.5]} 14. Be3
{[%clk 0:02:51.9]} 14... f6 {[%clk 0:02:52.4]} 15. f4 {[%clk 0:02:50.3]} 15...
fxe5 {[%clk 0:02:50.4]} 16. fxe5 {[%clk 0:02:49.8]} 16... g5 {[%clk 0:02:30.1]}
17. Qd2 {[%clk 0:02:48.6]} 17... h6 {[%clk 0:02:27.6]} 18. Rxf8+ {[%clk
0:02:48.1]} 18... Qxf8 {[%clk 0:02:24.3]} 19. Rf1 {[%clk 0:02:39.5]} 19... Qe7
{[%clk 0:02:24.8]} 20. Nxd5 {[%clk 0:02:27.2]} 20... exd5 {[%clk 0:02:24.3]} 21.
Bxd5+ {[%clk 0:02:28.1]} 21... Kh8 {[%clk 0:02:24.2]} 22. Rf7 {[%clk 0:02:27.5]}
22... Qb4 {[%clk 0:02:21.7]} 23. Qf2 {[%clk 0:02:16]} 23... Rf8 {[%clk
0:02:11.7]} 24. e6 {[%clk 0:02:06.8]} 24... Ng6 {[%clk 0:01:44.7]} 25. Be4
{[%clk 0:01:22.3]} 25... Nf4 {[%clk 0:01:34.7]} 26. Bxf4 {[%clk 0:01:21.8]}
26... gxf4 {[%clk 0:01:27.8]} 27. Qxf4 {[%clk 0:01:22.1]} 27... Qxd4+ {[%clk
0:01:08.1]} 28. Kg2 {[%clk 0:01:22]} 28... Qxb2+ {[%clk 0:00:52.2]} 29. Kf1
{[%clk 0:01:16.8]} 29... Qb5+ {[%clk 0:00:36]} 30. Kg2 {[%clk 0:01:13.1]} 30...
Qe2+ {[%clk 0:00:28]} 31. Kh1 {[%clk 0:01:01.3]} 31... Qd1+ {[%clk 0:00:08.7]}
32. Kg2 {[%clk 0:00:58]} 32... Rxf7 {[%clk 0:00:09.3]} 33. exf7 {[%clk
0:00:57.4]} 33... Qd8 {[%clk 0:00:09.9]} 34. Qf5 {[%clk 0:00:54.1]} 34... Qd2+
{[%clk 0:00:07.3]} 35. Kg3 {[%clk 0:00:46.6]} 35... Be5+ {[%clk 0:00:04.7]} 36.
Qxe5+ {[%clk 0:00:45.5]} 1-0